[Event "Late-Titled-Tuesday-Blitz-September-19-2023"]
[Site "Chess.com"]
[Date "2023.09.19"]
[Round "8"]
[White "Cipy77"]
[Black "Defenstrator"]
[Result "1-0"]
[WhiteElo "2495"]
[BlackElo "2338"]
[TimeControl "180+1"]
[EndTime "15:27:14 PDT"]
[Termination "Cipy77 won by checkmate"]

1. c4 {[%clk 0:02:53]} 1... g5 {[%clk 0:02:55.5]} 2. Nc3 {[%clk 0:02:49.4]} 2...
Bg7 {[%clk 0:02:53.8]} 3. d3 {[%clk 0:02:48.7]} 3... g4 {[%clk 0:02:48.1]} 4. h3
{[%clk 0:02:44.7]} 4... g3 {[%clk 0:02:40.9]} 5. fxg3 {[%clk 0:02:44]} 5... e6
{[%clk 0:02:27.9]} 6. Nf3 {[%clk 0:02:43.1]} 6... d5 {[%clk 0:02:25.5]} 7. cxd5
{[%clk 0:02:42.3]} 7... exd5 {[%clk 0:02:26.2]} 8. Bf4 {[%clk 0:02:30.6]} 8...
c6 {[%clk 0:02:18.4]} 9. g4 {[%clk 0:02:27.4]} 9... Ne7 {[%clk 0:02:14.1]} 10.
e3 {[%clk 0:02:27.7]} 10... Ng6 {[%clk 0:02:13.5]} 11. Qd2 {[%clk 0:02:24.8]}
11... O-O {[%clk 0:01:55.2]} 12. d4 {[%clk 0:02:20]} 12... Re8 {[%clk 0:01:35]}
13. Kf2 {[%clk 0:02:16.8]} 13... Nd7 {[%clk 0:01:23.2]} 14. Bd3 {[%clk
0:02:11.2]} 14... Nf6 {[%clk 0:01:13.3]} 15. Rhe1 {[%clk 0:02:08.7]} 15... Ne4+
{[%clk 0:01:12.3]} 16. Bxe4 {[%clk 0:02:07.3]} 16... dxe4 {[%clk 0:01:12.1]} 17.
Ng5 {[%clk 0:01:42.4]} 17... Nxf4 {[%clk 0:01:05.9]} 18. exf4 {[%clk 0:01:43.3]}
18... e3+ {[%clk 0:01:03.3]} 19. Rxe3 {[%clk 0:01:41.8]} 19... Bxd4 {[%clk
0:00:50.6]} 20. Nge4 {[%clk 0:01:37.7]} 20... Qh4+ {[%clk 0:00:39.9]} 21. Kg1
{[%clk 0:01:27.4]} 21... Bxe3+ {[%clk 0:00:26.6]} 22. Qxe3 {[%clk 0:01:27.2]}
22... Be6 {[%clk 0:00:22.1]} 23. g5 {[%clk 0:01:12.3]} 23... Red8 {[%clk
0:00:08.6]} 24. Nf6+ {[%clk 0:01:12.2]} 24... Kg7 {[%clk 0:00:08.4]} 25. Qe5
{[%clk 0:01:10]} 25... Kf8 {[%clk 0:00:05.3]} 26. Nce4 {[%clk 0:01:03.1]} 26...
Bd5 {[%clk 0:00:02.7]} 27. Nd6 {[%clk 0:00:53.3]} 27... Rxd6 {[%clk 0:00:02.1]}
28. Qxd6+ {[%clk 0:00:53.2]} 28... Kg7 {[%clk 0:00:03]} 29. Qe5 {[%clk
0:00:50.8]} 29... Kf8 {[%clk 0:00:02.7]} 30. Re1 {[%clk 0:00:50.6]} 30... Be6
{[%clk 0:00:01.6]} 31. Rd1 {[%clk 0:00:39.6]} 31... Re8 {[%clk 0:00:01.8]} 32.
Qd6+ {[%clk 0:00:36.9]} 32... Kg7 {[%clk 0:00:02.3]} 33. Nxe8+ {[%clk
0:00:36.9]} 33... Kg6 {[%clk 0:00:03.2]} 34. Qd4 {[%clk 0:00:35]} 34... Kf5
{[%clk 0:00:02.6]} 35. Qe5+ {[%clk 0:00:31.5]} 35... Kg6 {[%clk 0:00:03.2]} 36.
Qf6+ {[%clk 0:00:32.4]} 36... Kh5 {[%clk 0:00:04.1]} 37. Ng7# {[%clk 0:00:32.1]}
1-0

[Event "Late-Titled-Tuesday-Blitz-September-19-2023"]
[Site "Chess.com"]
[Date "2023.09.19"]
[Round "8"]
[White "dawid498"]
[Black "ElDivis"]
[Result "1-0"]
[WhiteElo "2669"]
[BlackElo "2523"]
[TimeControl "180+1"]
[EndTime "15:27:15 PDT"]
[Termination "dawid498 won on time"]

1. e4 {[%clk 0:03:00.9]} 1... c5 {[%clk 0:02:58.7]} 2. Nf3 {[%clk 0:03:01.3]}
2... d6 {[%clk 0:02:58.8]} 3. Nc3 {[%clk 0:03:01.9]} 3... Nf6 {[%clk 0:02:58.5]}
4. e5 {[%clk 0:03:02.6]} 4... dxe5 {[%clk 0:02:58.2]} 5. Nxe5 {[%clk 0:03:03.5]}
5... Nbd7 {[%clk 0:02:49.1]} 6. d4 {[%clk 0:03:03.5]} 6... e6 {[%clk 0:02:45.7]}
7. Bb5 {[%clk 0:03:03.1]} 7... a6 {[%clk 0:02:42.6]} 8. Bxd7+ {[%clk 0:03:03]}
8... Nxd7 {[%clk 0:02:36.1]} 9. Qh5 {[%clk 0:03:02.6]} 9... Nxe5 {[%clk
0:02:10.1]} 10. dxe5 {[%clk 0:03:03.5]} 10... Be7 {[%clk 0:02:03.1]} 11. Qg4
{[%clk 0:02:56.1]} 11... Kf8 {[%clk 0:01:32.7]} 12. O-O {[%clk 0:02:41.7]} 12...
b5 {[%clk 0:01:19.5]} 13. Rd1 {[%clk 0:02:11]} 13... Qc7 {[%clk 0:01:09.8]} 14.
Bg5 {[%clk 0:02:11]} 14... Bb7 {[%clk 0:00:59.5]} 15. Bxe7+ {[%clk 0:02:08.2]}
15... Qxe7 {[%clk 0:00:56.3]} 16. Ne4 {[%clk 0:01:53.3]} 16... h5 {[%clk
0:00:49.7]} 17. Qf4 {[%clk 0:01:40.9]} 17... h4 {[%clk 0:00:20.5]} 18. a4 {[%clk
0:01:16.1]} 18... g5 {[%clk 0:00:14.1]} 19. Qe3 {[%clk 0:00:37]} 19... g4 {[%clk
0:00:10.5]} 20. Nxc5 {[%clk 0:00:30]} 20... g3 {[%clk 0:00:07.5]} 21. Nxb7
{[%clk 0:00:22.1]} 21... gxh2+ {[%clk 0:00:06.9]} 22. Kxh2 {[%clk 0:00:18.6]}
22... Qxb7 {[%clk 0:00:07.8]} 23. axb5 {[%clk 0:00:16.1]} 23... Qxb5 {[%clk
0:00:03.7]} 24. Rd4 {[%clk 0:00:05.6]} 24... Rh5 {[%clk 0:00:02.8]} 25. f4
{[%clk 0:00:05.1]} 25... Rc8 {[%clk 0:00:02.3]} 26. c3 {[%clk 0:00:04.8]} 26...
Qxb2 {[%clk 0:00:01.4]} 27. Rad1 {[%clk 0:00:04.5]} 27... Qxc3 {[%clk
0:00:01.6]} 28. R1d3 {[%clk 0:00:04.2]} 28... Qc7 {[%clk 0:00:01.2]} 29. Qf3
{[%clk 0:00:03.8]} 29... Qc6 {[%clk 0:00:01.2]} 30. Qxh5 {[%clk 0:00:03.9]} 1-0

[Event "Late-Titled-Tuesday-Blitz-September-19-2023"]
[Site "Chess.com"]
[Date "2023.09.19"]
[Round "8"]
[White "KaydenTroffChess"]
[Black "Mikhail_Golubev"]
[Result "0-1"]
[WhiteElo "2763"]
[BlackElo "2588"]
[TimeControl "180+1"]
[EndTime "15:27:19 PDT"]
[Termination "Mikhail_Golubev won by resignation"]

1. d4 {[%clk 0:03:00.9]} 1... Nf6 {[%clk 0:02:59.1]} 2. Nf3 {[%clk 0:03:00.5]}
2... d6 {[%clk 0:02:58.7]} 3. Bg5 {[%clk 0:02:58.7]} 3... Nbd7 {[%clk
0:02:57.9]} 4. Nbd2 {[%clk 0:02:58.2]} 4... e5 {[%clk 0:02:57.5]} 5. e3 {[%clk
0:02:58.1]} 5... Be7 {[%clk 0:02:56.5]} 6. c3 {[%clk 0:02:55.4]} 6... e4 {[%clk
0:02:45.8]} 7. Ng1 {[%clk 0:02:49.1]} 7... d5 {[%clk 0:02:42.8]} 8. Ne2 {[%clk
0:02:40.7]} 8... O-O {[%clk 0:02:36.1]} 9. c4 {[%clk 0:02:38]} 9... c6 {[%clk
0:02:25]} 10. Nc3 {[%clk 0:02:27.6]} 10... a6 {[%clk 0:02:14.9]} 11. c5 {[%clk
0:02:12.3]} 11... Re8 {[%clk 0:02:06.7]} 12. Be2 {[%clk 0:02:09]} 12... Nf8
{[%clk 0:02:06.3]} 13. Bf4 {[%clk 0:01:48.2]} 13... Ne6 {[%clk 0:01:50.1]} 14.
Bg3 {[%clk 0:01:44.3]} 14... g6 {[%clk 0:01:49.6]} 15. Na4 {[%clk 0:01:38.8]}
15... Nd7 {[%clk 0:01:45]} 16. O-O {[%clk 0:01:20.6]} 16... f5 {[%clk
0:01:39.5]} 17. f3 {[%clk 0:01:19.4]} 17... Bh4 {[%clk 0:01:12.1]} 18. Qe1
{[%clk 0:01:15]} 18... Bxg3 {[%clk 0:01:11]} 19. Qxg3 {[%clk 0:01:15.9]} 19...
f4 {[%clk 0:01:08.2]} 20. Qf2 {[%clk 0:00:47]} 20... fxe3 {[%clk 0:01:02.9]} 21.
Qxe3 {[%clk 0:00:46.6]} 21... exf3 {[%clk 0:01:03]} 22. Qxf3 {[%clk 0:00:35.3]}
22... Nxd4 {[%clk 0:01:02.7]} 23. Qf7+ {[%clk 0:00:30.2]} 23... Kh8 {[%clk
0:01:03]} 24. Bd1 {[%clk 0:00:21.1]} 24... Rf8 {[%clk 0:00:56.1]} 25. Qxf8+
{[%clk 0:00:12.1]} 25... Nxf8 {[%clk 0:00:56.5]} 26. Nb6 {[%clk 0:00:11.6]}
26... Rb8 {[%clk 0:00:56]} 27. Nf3 {[%clk 0:00:08.2]} 27... Nxf3+ {[%clk
0:00:47.2]} 28. Bxf3 {[%clk 0:00:07.2]} 28... Ne6 {[%clk 0:00:36.3]} 29. Bg4
{[%clk 0:00:04.7]} 29... Nxc5 {[%clk 0:00:23.9]} 30. Nxc8 {[%clk 0:00:04.5]}
30... Rxc8 {[%clk 0:00:23.4]} 31. Bxc8 {[%clk 0:00:05.4]} 31... Qxc8 {[%clk
0:00:23.9]} 32. Rf7 {[%clk 0:00:05.6]} 32... Qe6 {[%clk 0:00:20.5]} 33. Raf1
{[%clk 0:00:05.8]} 33... Kg8 {[%clk 0:00:20.3]} 34. Rf8+ {[%clk 0:00:05.2]}
34... Kg7 {[%clk 0:00:20.4]} 35. R8f3 {[%clk 0:00:05.1]} 35... d4 {[%clk
0:00:19.8]} 36. Kh1 {[%clk 0:00:05]} 36... d3 {[%clk 0:00:19.8]} 37. R3f2 {[%clk
0:00:05.5]} 37... Ne4 {[%clk 0:00:19.5]} 38. Rf3 {[%clk 0:00:05.9]} 38... Nd2
{[%clk 0:00:17.9]} 0-1

[Event "Late-Titled-Tuesday-Blitz-September-19-2023"]
[Site "Chess.com"]
[Date "2023.09.19"]
[Round "8"]
[White "IMSlavin"]
[Black "stasOR4ik"]
[Result "0-1"]
[WhiteElo "2297"]
[BlackElo "2441"]
[TimeControl "180+1"]
[EndTime "15:27:19 PDT"]
[Termination "stasOR4ik won by checkmate"]

1. e4 {[%clk 0:03:00]} 1... c6 {[%clk 0:03:00.2]} 2. d4 {[%clk 0:02:59.5]} 2...
d5 {[%clk 0:03:00.9]} 3. e5 {[%clk 0:02:59.7]} 3... c5 {[%clk 0:03:00.9]} 4. c4
{[%clk 0:02:59.4]} 4... cxd4 {[%clk 0:02:54.6]} 5. Qxd4 {[%clk 0:02:58.5]} 5...
Nc6 {[%clk 0:02:49.2]} 6. Qxd5 {[%clk 0:02:57.9]} 6... Qxd5 {[%clk 0:02:48.3]}
7. cxd5 {[%clk 0:02:58]} 7... Nxe5 {[%clk 0:02:48.7]} 8. Bf4 {[%clk 0:02:56.8]}
8... Ng6 {[%clk 0:02:44.2]} 9. Bb5+ {[%clk 0:02:55.7]} 9... Bd7 {[%clk
0:02:44.2]} 10. Bxd7+ {[%clk 0:02:55.2]} 10... Kxd7 {[%clk 0:02:45.1]} 11. Bg3
{[%clk 0:02:55.2]} 11... Nf6 {[%clk 0:02:39.6]} 12. Nc3 {[%clk 0:02:54.9]} 12...
h5 {[%clk 0:02:21]} 13. Nf3 {[%clk 0:02:35.7]} 13... h4 {[%clk 0:02:16.7]} 14.
Ne5+ {[%clk 0:02:35.3]} 14... Nxe5 {[%clk 0:02:09.9]} 15. Bxe5 {[%clk
0:02:34.9]} 15... Rh5 {[%clk 0:02:08.8]} 16. f4 {[%clk 0:02:26.3]} 16... Ng4
{[%clk 0:01:39.1]} 17. Bd4 {[%clk 0:02:17.9]} 17... h3 {[%clk 0:01:37.1]} 18. g3
{[%clk 0:02:12.2]} 18... a6 {[%clk 0:00:54.1]} 19. O-O-O {[%clk 0:02:00.7]}
19... Rc8 {[%clk 0:00:54]} 20. Kb1 {[%clk 0:01:59.2]} 20... b5 {[%clk
0:00:46.3]} 21. a3 {[%clk 0:01:58.2]} 21... Rc4 {[%clk 0:00:27.3]} 22. Rd2
{[%clk 0:01:54.3]} 22... Nf6 {[%clk 0:00:26.4]} 23. Bf2 {[%clk 0:01:35.5]} 23...
Kd6 {[%clk 0:00:19.5]} 24. Rhd1 {[%clk 0:01:34.1]} 24... Ne4 {[%clk 0:00:19.3]}
25. Nxe4+ {[%clk 0:01:32.1]} 25... Rxe4 {[%clk 0:00:20.2]} 26. b4 {[%clk
0:01:30.4]} 26... g6 {[%clk 0:00:19.3]} 27. Bc5+ {[%clk 0:01:29.6]} 27... Kd7
{[%clk 0:00:19.2]} 28. Kc2 {[%clk 0:01:28.4]} 28... Bg7 {[%clk 0:00:18.2]} 29.
Rd3 {[%clk 0:01:11.7]} 29... Rc4+ {[%clk 0:00:18.3]} 30. Kd2 {[%clk 0:01:11.2]}
30... g5 {[%clk 0:00:15.2]} 31. fxg5 {[%clk 0:01:04.2]} 31... Rxg5 {[%clk
0:00:15.7]} 32. Ke2 {[%clk 0:01:04.1]} 32... Re5+ {[%clk 0:00:15.1]} 33. Kf2
{[%clk 0:01:04]} 33... Rf5+ {[%clk 0:00:15.4]} 34. Kg1 {[%clk 0:01:03.4]} 34...
Bb2 {[%clk 0:00:14.8]} 35. d6 {[%clk 0:01:00.7]} 35... e6 {[%clk 0:00:14.6]} 36.
R3d2 {[%clk 0:01:00.5]} 36... Bxa3 {[%clk 0:00:14.1]} 37. Rf2 {[%clk 0:00:59.9]}
37... Bxb4 {[%clk 0:00:13.5]} 38. Rxf5 {[%clk 0:00:58.2]} 38... Bxc5+ {[%clk
0:00:11.5]} 39. Rxc5 {[%clk 0:00:55.7]} 39... Rxc5 {[%clk 0:00:11.9]} 40. Kf2
{[%clk 0:00:55.5]} 40... Rd5 {[%clk 0:00:11.8]} 41. Ra1 {[%clk 0:00:55.2]} 41...
Rxd6 {[%clk 0:00:11.9]} 42. Kf3 {[%clk 0:00:55.9]} 42... Kc7 {[%clk 0:00:10.6]}
43. Kg4 {[%clk 0:00:55.9]} 43... b4 {[%clk 0:00:10.6]} 44. Kxh3 {[%clk
0:00:55.9]} 44... b3 {[%clk 0:00:11]} 45. Rb1 {[%clk 0:00:55.8]} 45... Rb6
{[%clk 0:00:10.8]} 46. Kg4 {[%clk 0:00:56.5]} 46... a5 {[%clk 0:00:11]} 47. h4
{[%clk 0:00:56.8]} 47... a4 {[%clk 0:00:11.7]} 48. h5 {[%clk 0:00:57.5]} 48...
a3 {[%clk 0:00:12]} 49. h6 {[%clk 0:00:57.6]} 49... a2 {[%clk 0:00:11.7]} 50.
Rc1+ {[%clk 0:00:57.7]} 50... Rc6 {[%clk 0:00:09.8]} 51. h7 {[%clk 0:00:58.4]}
51... Rxc1 {[%clk 0:00:08.7]} 52. h8=Q {[%clk 0:00:57.3]} 52... a1=Q {[%clk
0:00:09.3]} 53. Qf8 {[%clk 0:00:54.2]} 53... Qd4+ {[%clk 0:00:09]} 54. Kg5
{[%clk 0:00:52.5]} 54... Qe5+ {[%clk 0:00:09.2]} 55. Kg4 {[%clk 0:00:51.5]}
55... Qf5+ {[%clk 0:00:09.5]} 56. Kh4 {[%clk 0:00:48.7]} 56... Rh1# {[%clk
0:00:10.4]} 0-1

[Event "Late-Titled-Tuesday-Blitz-September-19-2023"]
[Site "Chess.com"]
[Date "2023.09.19"]
[Round "8"]
[White "Dhaydon19"]
[Black "Beca95"]
[Result "1-0"]
[WhiteElo "2698"]
[BlackElo "2851"]
[TimeControl "180+1"]
[EndTime "15:27:22 PDT"]
[Termination "Dhaydon19 won on time"]

1. d4 {[%clk 0:03:00.9]} 1... Nf6 {[%clk 0:02:59.4]} 2. Nf3 {[%clk 0:03:01.4]}
2... e6 {[%clk 0:02:58.3]} 3. c4 {[%clk 0:03:00.5]} 3... c5 {[%clk 0:02:58.8]}
4. e3 {[%clk 0:02:55.3]} 4... a6 {[%clk 0:02:56.1]} 5. Be2 {[%clk 0:02:55]} 5...
d5 {[%clk 0:02:49.7]} 6. cxd5 {[%clk 0:02:51.4]} 6... exd5 {[%clk 0:02:49.3]} 7.
dxc5 {[%clk 0:02:50.1]} 7... Bxc5 {[%clk 0:02:48.2]} 8. O-O {[%clk 0:02:50.6]}
8... Nc6 {[%clk 0:02:48.2]} 9. a3 {[%clk 0:02:45]} 9... O-O {[%clk 0:02:37.3]}
10. b4 {[%clk 0:02:44.2]} 10... Bd6 {[%clk 0:02:37.8]} 11. Bb2 {[%clk
0:02:44.1]} 11... Bc7 {[%clk 0:02:33.6]} 12. Nbd2 {[%clk 0:02:42.1]} 12... Qd6
{[%clk 0:02:29]} 13. Rc1 {[%clk 0:02:37.5]} 13... Bg4 {[%clk 0:02:25.6]} 14. g3
{[%clk 0:02:36.8]} 14... Bh3 {[%clk 0:02:23.8]} 15. Re1 {[%clk 0:02:36.2]} 15...
Bb6 {[%clk 0:02:16.4]} 16. Nb3 {[%clk 0:02:30.9]} 16... Ne4 {[%clk 0:02:14.2]}
17. Bd3 {[%clk 0:02:13.6]} 17... Qe7 {[%clk 0:02:05]} 18. Bb1 {[%clk 0:02:03.4]}
18... Rfd8 {[%clk 0:02:01.1]} 19. Nbd4 {[%clk 0:01:56]} 19... Na7 {[%clk
0:01:16.5]} 20. Nd2 {[%clk 0:01:51.5]} 20... g6 {[%clk 0:00:41.8]} 21. Nxe4
{[%clk 0:01:46.6]} 21... dxe4 {[%clk 0:00:42.7]} 22. Qe2 {[%clk 0:01:44.1]}
22... Bxd4 {[%clk 0:00:41.8]} 23. Bxd4 {[%clk 0:01:42.5]} 23... Nc6 {[%clk
0:00:41.6]} 24. Bb2 {[%clk 0:01:38.9]} 24... h5 {[%clk 0:00:38.8]} 25. Rc5
{[%clk 0:01:34.3]} 25... f6 {[%clk 0:00:23.4]} 26. Qc4+ {[%clk 0:01:32.8]} 26...
Kg7 {[%clk 0:00:21.2]} 27. Qxe4 {[%clk 0:01:30.1]} 27... Qxe4 {[%clk 0:00:21.2]}
28. Bxe4 {[%clk 0:01:30.5]} 28... Rd6 {[%clk 0:00:20.4]} 29. Bxc6 {[%clk
0:01:20.5]} 29... bxc6 {[%clk 0:00:20.2]} 30. Bd4 {[%clk 0:01:17.5]} 30... Re8
{[%clk 0:00:19.5]} 31. Rec1 {[%clk 0:01:16.4]} 31... Bd7 {[%clk 0:00:16.4]} 32.
f3 {[%clk 0:01:15.8]} 32... Kf7 {[%clk 0:00:15.3]} 33. Kf2 {[%clk 0:01:15.1]}
33... g5 {[%clk 0:00:15]} 34. Ra5 {[%clk 0:01:14.9]} 34... Bc8 {[%clk
0:00:14.1]} 35. h4 {[%clk 0:01:13.8]} 35... Kg6 {[%clk 0:00:14.3]} 36. Rcc5
{[%clk 0:01:09.8]} 36... g4 {[%clk 0:00:13.4]} 37. Rxh5 {[%clk 0:01:05.2]} 37...
gxf3 {[%clk 0:00:13]} 38. Kxf3 {[%clk 0:00:58.6]} 38... Be6 {[%clk 0:00:13]} 39.
Rhc5 {[%clk 0:00:57.6]} 39... Bd5+ {[%clk 0:00:13.2]} 40. Kf2 {[%clk 0:00:58.1]}
40... Rh8 {[%clk 0:00:10]} 41. Rxa6 {[%clk 0:00:55.9]} 41... Rh5 {[%clk
0:00:08.4]} 42. b5 {[%clk 0:00:55.4]} 42... Rf5+ {[%clk 0:00:08.7]} 43. Ke1
{[%clk 0:00:54.5]} 43... Be4 {[%clk 0:00:06.6]} 44. Rxf5 {[%clk 0:00:52.9]}
44... Kxf5 {[%clk 0:00:07.5]} 45. b6 {[%clk 0:00:51.6]} 45... c5 {[%clk
0:00:07.6]} 46. b7 {[%clk 0:00:48.2]} 46... Rd8 {[%clk 0:00:06.5]} 47. Rxf6+
{[%clk 0:00:42.9]} 47... Kg4 {[%clk 0:00:05.5]} 48. Rf4+ {[%clk 0:00:43.6]}
48... Kh3 {[%clk 0:00:06]} 49. Rxe4 {[%clk 0:00:44.2]} 49... cxd4 {[%clk
0:00:06.6]} 50. Rxd4 {[%clk 0:00:44.7]} 50... Rb8 {[%clk 0:00:06.9]} 51. Rb4
{[%clk 0:00:45.3]} 1-0

[Event "Late-Titled-Tuesday-Blitz-September-19-2023"]
[Site "Chess.com"]
[Date "2023.09.19"]
[Round "8"]
[White "arminmusovic"]
[Black "valemava"]
[Result "1-0"]
[WhiteElo "2497"]
[BlackElo "2281"]
[TimeControl "180+1"]
[EndTime "15:27:23 PDT"]
[Termination "arminmusovic won by checkmate"]

1. a3 {[%clk 0:03:00.9]} 1... g6 {[%clk 0:02:53.8]} 2. Nc3 {[%clk 0:03:01.8]}
2... Bg7 {[%clk 0:02:53.9]} 3. e4 {[%clk 0:03:02.5]} 3... c5 {[%clk 0:02:53.3]}
4. Bc4 {[%clk 0:03:02.7]} 4... a6 {[%clk 0:02:50.2]} 5. d3 {[%clk 0:03:02.9]}
5... b5 {[%clk 0:02:50]} 6. Ba2 {[%clk 0:03:03.3]} 6... Nc6 {[%clk 0:02:49.5]}
7. Bg5 {[%clk 0:03:03.3]} 7... h6 {[%clk 0:02:48.9]} 8. Bh4 {[%clk 0:03:03.7]}
8... d6 {[%clk 0:02:48.8]} 9. Nge2 {[%clk 0:03:03.4]} 9... Nf6 {[%clk
0:02:48.5]} 10. O-O {[%clk 0:03:03.8]} 10... O-O {[%clk 0:02:48.5]} 11. f4
{[%clk 0:03:04.4]} 11... Nd4 {[%clk 0:02:48]} 12. Nxd4 {[%clk 0:03:04]} 12...
cxd4 {[%clk 0:02:47.9]} 13. Ne2 {[%clk 0:03:04]} 13... Qb6 {[%clk 0:02:44.9]}
14. h3 {[%clk 0:03:00.9]} 14... Ra7 {[%clk 0:02:42.1]} 15. Qd2 {[%clk
0:02:58.3]} 15... Rc7 {[%clk 0:02:32.5]} 16. Rf2 {[%clk 0:02:55.1]} 16... a5
{[%clk 0:02:13.7]} 17. Raf1 {[%clk 0:02:48.2]} 17... b4 {[%clk 0:02:12.9]} 18.
e5 {[%clk 0:02:48.1]} 18... Ne8 {[%clk 0:01:59.3]} 19. Ng3 {[%clk 0:02:27.5]}
19... bxa3 {[%clk 0:01:52]} 20. bxa3 {[%clk 0:02:27]} 20... Qb2 {[%clk
0:01:50.4]} 21. Bb3 {[%clk 0:02:26]} 21... Qxa3 {[%clk 0:01:49]} 22. f5 {[%clk
0:02:21.2]} 22... a4 {[%clk 0:01:48]} 23. f6 {[%clk 0:02:10.6]} 23... exf6
{[%clk 0:01:41.1]} 24. exf6 {[%clk 0:02:08.8]} 24... axb3 {[%clk 0:01:37.6]} 25.
fxg7 {[%clk 0:02:06.5]} 25... Kxg7 {[%clk 0:01:37.3]} 26. cxb3 {[%clk
0:01:49.4]} 26... Qc5 {[%clk 0:01:28.7]} 27. Bd8 {[%clk 0:01:39.3]} 27... Rd7
{[%clk 0:01:25.9]} 28. Ne4 {[%clk 0:01:39.2]} 28... Qe5 {[%clk 0:01:22.3]} 29.
Bh4 {[%clk 0:01:27.8]} 29... f5 {[%clk 0:01:19.4]} 30. Bg3 {[%clk 0:01:28.1]}
30... Qe6 {[%clk 0:01:15.1]} 31. Bf4 {[%clk 0:01:28.1]} 31... g5 {[%clk
0:01:01.7]} 32. Bh2 {[%clk 0:01:14.8]} 32... Qg6 {[%clk 0:01:00.6]} 33. Qb4
{[%clk 0:01:11.2]} 33... Rb7 {[%clk 0:00:57.9]} 34. Qxd4+ {[%clk 0:01:11.1]}
34... Kh7 {[%clk 0:00:55.9]} 35. b4 {[%clk 0:01:01.2]} 35... Qg7 {[%clk
0:00:52.5]} 36. Qxg7+ {[%clk 0:00:58.1]} 36... Kxg7 {[%clk 0:00:53.4]} 37. Nxd6
{[%clk 0:00:58.9]} 37... Nxd6 {[%clk 0:00:51]} 38. Bxd6 {[%clk 0:00:59.8]} 38...
Rd8 {[%clk 0:00:49.4]} 39. Bc5 {[%clk 0:00:49.9]} 39... Rxd3 {[%clk 0:00:49.2]}
40. Re1 {[%clk 0:00:50.6]} 40... Kf7 {[%clk 0:00:46.8]} 41. Rfe2 {[%clk
0:00:50]} 41... f4 {[%clk 0:00:45.1]} 42. Re8 {[%clk 0:00:49.9]} 42... Rd1
{[%clk 0:00:38.1]} 43. Rf8+ {[%clk 0:00:47.2]} 43... Kg7 {[%clk 0:00:37]} 44.
Rxd1 {[%clk 0:00:47.8]} 44... Be6 {[%clk 0:00:36.5]} 45. Re8 {[%clk 0:00:45]}
45... Kf7 {[%clk 0:00:34.4]} 46. Rdd8 {[%clk 0:00:43.9]} 46... Kf6 {[%clk
0:00:33.4]} 47. Rd6 {[%clk 0:00:41.8]} 47... Kf5 {[%clk 0:00:32]} 48. Rdxe6
{[%clk 0:00:40.7]} 48... f3 {[%clk 0:00:28.3]} 49. g3 {[%clk 0:00:40.4]} 49...
g4 {[%clk 0:00:28]} 50. h4 {[%clk 0:00:40.3]} 50... h5 {[%clk 0:00:24.4]} 51.
Re5+ {[%clk 0:00:39.7]} 51... Kf6 {[%clk 0:00:24.8]} 52. R8e6+ {[%clk
0:00:39.9]} 52... Kf7 {[%clk 0:00:24.9]} 53. Kf2 {[%clk 0:00:40.2]} 53... Rd7
{[%clk 0:00:24.5]} 54. Re7+ {[%clk 0:00:40.4]} 54... Rxe7 {[%clk 0:00:24.6]} 55.
Rxe7+ {[%clk 0:00:41.3]} 55... Kg6 {[%clk 0:00:25.1]} 56. Re4 {[%clk 0:00:41.9]}
56... Kf5 {[%clk 0:00:25.7]} 57. Re3 {[%clk 0:00:41.8]} 57... Kf6 {[%clk
0:00:25.7]} 58. b5 {[%clk 0:00:42.7]} 58... Kf5 {[%clk 0:00:26.5]} 59. b6 {[%clk
0:00:43.6]} 59... Kf6 {[%clk 0:00:26.7]} 60. b7 {[%clk 0:00:44.5]} 60... Kf5
{[%clk 0:00:27.4]} 61. Bb4 {[%clk 0:00:45.4]} 61... Kf6 {[%clk 0:00:27.7]} 62.
Be1 {[%clk 0:00:46.3]} 62... Kf5 {[%clk 0:00:28.5]} 63. b8=Q {[%clk 0:00:46.9]}
63... Kg6 {[%clk 0:00:29.4]} 64. Qb3 {[%clk 0:00:47.3]} 64... Kf5 {[%clk
0:00:30.3]} 65. Qd3+ {[%clk 0:00:48.1]} 65... Kf6 {[%clk 0:00:31.2]} 66. Re4
{[%clk 0:00:48.6]} 66... Kf5 {[%clk 0:00:32.1]} 67. Qd5+ {[%clk 0:00:49]} 67...
Kf6 {[%clk 0:00:33]} 68. Re6+ {[%clk 0:00:49.9]} 68... Kg7 {[%clk 0:00:32.5]}
69. Qd7+ {[%clk 0:00:50.8]} 69... Kf8 {[%clk 0:00:33.1]} 70. Re8# {[%clk
0:00:51.7]} 1-0

[Event "Late-Titled-Tuesday-Blitz-September-19-2023"]
[Site "Chess.com"]
[Date "2023.09.19"]
[Round "8"]
[White "SantoBlue"]
[Black "VitaliyBernadskiy"]
[Result "0-1"]
[WhiteElo "2947"]
[BlackElo "2875"]
[TimeControl "180+1"]
[EndTime "15:27:24 PDT"]
[Termination "VitaliyBernadskiy won by checkmate"]

1. e4 {[%clk 0:03:00.9]} 1... c6 {[%clk 0:02:55.9]} 2. d4 {[%clk 0:02:54.6]}
2... d5 {[%clk 0:02:56.8]} 3. e5 {[%clk 0:02:54.8]} 3... Bf5 {[%clk 0:02:56.1]}
4. Nd2 {[%clk 0:02:55]} 4... e6 {[%clk 0:02:55.6]} 5. Nb3 {[%clk 0:02:55]} 5...
Nd7 {[%clk 0:02:53.6]} 6. Nf3 {[%clk 0:02:52.4]} 6... h6 {[%clk 0:02:48.5]} 7.
Be3 {[%clk 0:02:52.5]} 7... Ne7 {[%clk 0:02:46.1]} 8. Be2 {[%clk 0:02:49.5]}
8... Nc8 {[%clk 0:02:44.5]} 9. O-O {[%clk 0:02:49.9]} 9... Be7 {[%clk
0:02:44.3]} 10. a4 {[%clk 0:02:49.7]} 10... Ncb6 {[%clk 0:02:42.9]} 11. a5
{[%clk 0:02:42.8]} 11... Nc4 {[%clk 0:02:42.9]} 12. Bxc4 {[%clk 0:02:43.5]}
12... dxc4 {[%clk 0:02:43.8]} 13. Nbd2 {[%clk 0:02:44.3]} 13... b5 {[%clk
0:02:44]} 14. axb6 {[%clk 0:02:44.5]} 14... Nxb6 {[%clk 0:02:43.3]} 15. c3
{[%clk 0:02:12.6]} 15... a5 {[%clk 0:02:34.5]} 16. Ne1 {[%clk 0:02:09.9]} 16...
O-O {[%clk 0:02:33.1]} 17. Qe2 {[%clk 0:02:07.8]} 17... Qd5 {[%clk 0:02:32.5]}
18. g4 {[%clk 0:01:58.7]} 18... Bh7 {[%clk 0:02:27]} 19. f4 {[%clk 0:01:59.3]}
19... c5 {[%clk 0:01:51.8]} 20. f5 {[%clk 0:01:49.4]} 20... cxd4 {[%clk
0:01:51.8]} 21. Bxd4 {[%clk 0:01:49.7]} 21... Bc5 {[%clk 0:01:52]} 22. Qe3
{[%clk 0:01:42.5]} 22... Bxd4 {[%clk 0:01:50]} 23. cxd4 {[%clk 0:01:38.7]} 23...
Rfd8 {[%clk 0:01:45.8]} 24. Nc2 {[%clk 0:01:38.8]} 24... Qb7 {[%clk 0:01:35.2]}
25. Qg3 {[%clk 0:01:26.4]} 25... Nd5 {[%clk 0:01:31.8]} 26. Nxc4 {[%clk
0:01:24]} 26... Qc6 {[%clk 0:01:27.2]} 27. b3 {[%clk 0:01:20.8]} 27... a4 {[%clk
0:01:25.1]} 28. h3 {[%clk 0:01:09.4]} 28... Rdb8 {[%clk 0:01:05.1]} 29. N2e3
{[%clk 0:00:58.8]} 29... axb3 {[%clk 0:00:53.6]} 30. Rxa8 {[%clk 0:00:39.3]}
30... Rxa8 {[%clk 0:00:54.5]} 31. Nxd5 {[%clk 0:00:39.8]} 31... Qxd5 {[%clk
0:00:52.3]} 32. Qxb3 {[%clk 0:00:38.2]} 32... Rc8 {[%clk 0:00:46.6]} 33. Rc1
{[%clk 0:00:22.1]} 33... exf5 {[%clk 0:00:44.1]} 34. Kh2 {[%clk 0:00:08.8]}
34... Qxd4 {[%clk 0:00:36.2]} 35. Rd1 {[%clk 0:00:02.6]} 35... Qf4+ {[%clk
0:00:35.9]} 36. Kh1 {[%clk 0:00:03.1]} 36... fxg4 {[%clk 0:00:34.2]} 37. Nd6
{[%clk 0:00:03.8]} 37... Be4+ {[%clk 0:00:31]} 38. Kg1 {[%clk 0:00:04.3]} 38...
Rc2 {[%clk 0:00:21.5]} 39. Nxe4 {[%clk 0:00:02.9]} 39... Qh2+ {[%clk 0:00:19.1]}
40. Kf1 {[%clk 0:00:03.5]} 40... Qh1# {[%clk 0:00:19.3]} 0-1